fUSD/lending_fUSD_20260528
["ID","MTS","AMOUNT","RATE_DAILY","PERIOD"]
[423241913,1779977435000,-2000.0,0.00022516,2]
[423241897,1779977435000,-3382.72,0.00021777,2]
[423241865,1779977435000,-284.04184663,0.00019338,2]
[423241854,1779977435000,-22973.4,0.00018533,2]
[423241992,1779977436000,-437.4,0.00027187,2]
[423241986,1779977436000,-928.0,0.00027056,2]
[423241996,1779977436000,-300.0,0.00027397,2]
[423241991,1779977436000,-151.39,0.0002707,30]
[423241979,1779977436000,-344.78,0.00026489,2]
[423241980,1779977436000,-154.79,0.00026587,7]
[423241965,1779977436000,-154.79,0.00025622,30]
[423241982,1779977436000,-200.0,0.00026816,2]
[423241983,1779977436000,-501.0,0.00026873,3]
[423241987,1779977436000,-525.0,0.00027058,2]
[423241976,1779977436000,-200.0,0.00026221,2]
[423241978,1779977436000,-771.5,0.00026296,2]
[423241990,1779977436000,-154.79,0.0002707,30]
[423241993,1779977436000,-450.0,0.00027187,2]
[423241985,1779977436000,-1356.0,0.00027056,2]
[423241989,1779977436000,-6064.0,0.00027058,2]
[423241994,1779977436000,-1500.0,0.00027397,2]
[423241995,1779977436000,-172.39,0.00027397,2]
[423241998,1779977436000,-5800.95,0.00027397,10]
[423242008,1779977436000,-353.19,0.0002755,30]
[423242000,1779977436000,-4995.26,0.00027397,10]
[423242003,1779977436000,-3371.0,0.0002755,5]
[423241999,1779977436000,-5994.31,0.00027397,10]
[423241997,1779977436000,-1000.0,0.00027397,20]
[423242001,1779977436000,-501.0,0.0002747,4]
[423241988,1779977436000,-932.0,0.00027058,2]
[423241972,1779977436000,-500.0,0.00026,2]
[423241960,1779977436000,-151.39,0.0002514,7]
[423241984,1779977436000,-1223.24539854,0.00027022,2]
[423242007,1779977436000,-714.71,0.0002755,30]
[423241956,1779977436000,-688.0,0.00025,2]
[423241957,1779977436000,-552.0,0.00025,2]
[423241950,1779977436000,-151.39,0.00024658,2]
[423241952,1779977436000,-1129.56088979,0.00025,2]
[423241954,1779977436000,-549.0,0.00025,2]
[423241951,1779977436000,-344.78,0.00024683,2]
[423241955,1779977436000,-209.0,0.00025,2]
[423241961,1779977436000,-200.0,0.00025234,2]
[423241949,1779977436000,-154.79,0.00024658,2]
[423241953,1779977436000,-204.0,0.00025,2]
[423241959,1779977436000,-154.79,0.0002514,7]
[423241966,1779977436000,-151.39,0.00025622,30]
[423241958,1779977436000,-501.0,0.00025082,2]
[423241964,1779977436000,-2899.0,0.00025622,5]
[423241975,1779977436000,-151.39,0.00026105,2]
[423241969,1779977436000,-844.3,0.00025804,2]
[423241981,1779977436000,-151.39,0.00026587,7]
[423241971,1779977436000,-150.0,0.00025893,2]
[423241963,1779977436000,-2000.0,0.00025331,2]
[423241967,1779977436000,-501.0,0.00025679,2]
[423241968,1779977436000,-200.0,0.00025767,2]
[423241970,1779977436000,-344.78,0.00025887,2]
[423241974,1779977436000,-154.79,0.00026105,2]
[423241977,1779977436000,-501.0,0.00026276,3]
[423241973,1779977436000,-200.0,0.00026025,2]
[423241962,1779977436000,-344.78,0.00025285,2]
[423242005,1779977436000,-353.47,0.0002755,30]
[423242024,1779977436000,-168.21,0.00027782,30]
[423242004,1779977436000,-885.77,0.0002755,30]
[423242044,1779977436000,-151.39,0.00028035,7]
[423242039,1779977436000,-714.71,0.00028033,30]
[423242042,1779977436000,-690.27,0.00028033,30]
[423242037,1779977436000,-885.77,0.00028033,30]
[423242041,1779977436000,-690.68,0.00028033,30]
[423242045,1779977436000,-501.0,0.00028067,5]
[423242040,1779977436000,-353.19,0.00028033,30]
[423242043,1779977436000,-154.79,0.00028035,7]
[423242047,1779977436000,-168.25,0.0002813,30]
[423242046,1779977436000,-172.03,0.0002813,30]
[423242048,1779977436000,-885.77,0.00028194,7]
[423242049,1779977436000,-353.47,0.00028194,7]
[423242035,1779977436000,-171.99,0.00028014,7]
[423242050,1779977436000,-714.71,0.00028194,7]
[423242052,1779977436000,-690.68,0.00028194,7]
[423242054,1779977436000,-771.5,0.00028267,2]
[423242053,1779977436000,-690.27,0.00028194,7]
[423242056,1779977436000,-177.48849224,0.00028514,7]
[423242055,1779977436000,-200.0,0.00028398,2]
[423242057,1779977436000,-154.79,0.00028517,30]
[423242058,1779977436000,-151.39,0.00028517,30]
[423242064,1779977436000,-800.0,0.0002884,11]
[423242060,1779977436000,-215.50460005,0.000286,7]
[423242063,1779977436000,-500.0,0.00028767,2]
[423242061,1779977436000,-8040.09,0.00028618,2]
[423242002,1779977436000,-150.0,0.00027521,2]
[423242051,1779977436000,-353.19,0.00028194,7]
[423242038,1779977436000,-353.47,0.00028033,30]
[423242059,1779977436000,-169.28120997,0.00028543,2]
[423242034,1779977436000,-1000.0,0.00028,2]
[423242036,1779977436000,-168.21,0.00028014,7]
[423242006,1779977436000,-171.99,0.0002755,2]
[423242012,1779977436000,-154.79,0.00027552,2]
[423242013,1779977436000,-151.39,0.00027552,2]
[423242016,1779977436000,-168.21,0.00027666,7]
[423242021,1779977436000,-690.68,0.00027711,7]
[423242017,1779977436000,-885.77,0.00027711,7]
[423242015,1779977436000,-171.99,0.00027666,7]
[423242010,1779977436000,-690.68,0.0002755,30]
[423242018,1779977436000,-353.47,0.00027711,7]
[423242009,1779977436000,-168.21,0.0002755,2]
[423242020,1779977436000,-353.19,0.00027711,7]
[423242014,1779977436000,-200.0,0.00027607,2]
[423242019,1779977436000,-714.71,0.00027711,7]
[423242023,1779977436000,-171.99,0.00027782,30]
[423242027,1779977436000,-714.71,0.00027872,2]
[423242011,1779977436000,-690.27,0.0002755,30]
[423242028,1779977436000,-353.19,0.00027872,2]
[423242032,1779977436000,-168.21,0.00027898,2]
[423242029,1779977436000,-690.68,0.00027872,2]
[423242030,1779977436000,-690.27,0.00027872,2]
[423242026,1779977436000,-353.47,0.00027872,2]
[423242062,1779977436000,-501.0,0.00028664,5]
[423242022,1779977436000,-690.27,0.00027711,7]
[423242033,1779977436000,-851.0,0.00028,2]
[423242025,1779977436000,-885.77,0.00027872,2]
[423242031,1779977436000,-171.99,0.00027898,2]
[423242091,1779977437000,-4220.99266177,0.000297,2]
[423242093,1779977437000,-155.0,0.00029775,30]
[423242096,1779977437000,-688.0,0.00029775,30]
[423242103,1779977437000,-354.97698447,0.00029849,7]
[423242095,1779977437000,-209.0,0.00029775,30]
[423242094,1779977437000,-539.0,0.00029775,30]
[423242100,1779977437000,-194.0,0.00029794,30]
[423242101,1779977437000,-150.0,0.000298,30]
[423242098,1779977437000,-542.0,0.00029776,30]
[423242099,1779977437000,-153.0,0.00029776,30]
[423242108,1779977437000,-525.0,0.00030058,2]
[423242104,1779977437000,-501.0,0.00029858,7]
[423242106,1779977437000,-1356.0,0.00030056,2]
[423242107,1779977437000,-928.0,0.00030056,2]
[423242113,1779977437000,-375.599999,0.000302,2]
[423242109,1779977437000,-932.0,0.00030058,2]
[423242114,1779977437000,-771.5,0.00030239,2]
[423242112,1779977437000,-200.0,0.00030137,40]
[423242111,1779977437000,-172.39,0.00030137,2]
[423242115,1779977437000,-150.0,0.00030341,2]
[423242102,1779977437000,-150.0,0.000298,30]
[423242105,1779977437000,-338.56241994,0.00029878,2]
[423242097,1779977437000,-156.0,0.00029775,30]
[423242092,1779977437000,-4220.99266177,0.000297,2]
[423242078,1779977437000,-154.87,0.00029,2]
[423242086,1779977437000,-1000.0,0.00029551,2]
[423242110,1779977437000,-6064.0,0.00030058,2]
[423242067,1779977437000,-800.0,0.0002884,11]
[423242065,1779977437000,-800.0,0.0002884,11]
[423242066,1779977437000,-800.0,0.0002884,11]
[423242069,1779977437000,-197.2394493,0.0002884,11]
[423242068,1779977437000,-800.0,0.0002884,11]
[423242072,1779977437000,-155.1,0.00029,2]
[423242070,1779977437000,-150.0,0.00028893,2]
[423242074,1779977437000,-155.09,0.00029,2]
[423242071,1779977437000,-150.0,0.00028897,2]
[423242073,1779977437000,-155.09,0.00029,2]
[423242089,1779977437000,-139.39793076,0.000297,2]
[423242075,1779977437000,-155.09,0.00029,2]
[423242077,1779977437000,-151.49,0.00029,2]
[423242080,1779977437000,-200.0,0.00029189,2]
[423242079,1779977437000,-151.44,0.00029,2]
[423242085,1779977437000,-1000.0,0.00029551,2]
[423242084,1779977437000,-1000.0,0.00029551,2]
[423242081,1779977437000,-501.0,0.00029261,6]
[423242083,1779977437000,-1000.0,0.00029551,2]
[423242090,1779977437000,-4081.59473102,0.000297,2]
[423242082,1779977437000,-1000.0,0.00029551,2]
[423242087,1779977437000,-1223.24539854,0.00029617,2]
[423242088,1779977437000,-1000.0,0.000297,7]
[423242076,1779977437000,-155.09,0.00029,2]
[423242116,1779977437000,-501.0,0.00030455,7]
[423242131,1779977437000,-160.0,0.000312,7]
[423242127,1779977437000,-194.0,0.00030794,30]
[423242147,1779977437000,-539.0,0.00031775,30]
[423242150,1779977437000,-165.15482607,0.00031775,30]
[423242145,1779977437000,-501.0,0.00031648,8]
[423242149,1779977437000,-688.0,0.00031775,30]
[423242151,1779977437000,-542.0,0.00031776,30]
[423242148,1779977437000,-209.0,0.00031775,30]
[423242154,1779977437000,-150.0,0.00031858,2]
[423242157,1779977437000,-453.6375,0.00031956,2]
[423242155,1779977437000,-150.0,0.00031893,2]
[423242156,1779977437000,-134.49255547,0.00031956,2]
[423242164,1779977437000,-174.84515845,0.00032,120]
[423242158,1779977437000,-258.27599438,0.00031956,2]
[423242165,1779977437000,-89.10273636,0.00032,120]
[423242159,1779977437000,-106.54900562,0.00032,120]
[423242117,1779977437000,-231.60033565,0.00030739,7]
[423242161,1779977437000,-165.54796298,0.00032,120]
[423242162,1779977437000,-207.55967381,0.00032,120]
[423242160,1779977437000,-64.04216322,0.00032,120]
[423242167,1779977437000,-54.97442513,0.00032,120]
[423242168,1779977437000,-160.0,0.000322,12]
[423242169,1779977437000,-160.0,0.000322,12]
[423242166,1779977437000,-284.14244232,0.00032,120]
[423242170,1779977437000,-99.22850987,0.0003221,5]
[423242146,1779977437000,-155.0,0.00031775,30]
[423242144,1779977437000,-1405.72280327,0.00031615,2]
[423242163,1779977437000,-1.90966287,0.00032,120]
[423242143,1779977437000,-150.0,0.00031615,2]
[423242141,1779977437000,-250.26455384,0.00031368,2]
[423242120,1779977437000,-155.0,0.00030775,30]
[423242119,1779977437000,-507.84362991,0.00030769,2]
[423242118,1779977437000,-300.86514106,0.00030739,7]
[423242122,1779977437000,-209.0,0.00030775,30]
[423242123,1779977437000,-688.0,0.00030775,30]
[423242124,1779977437000,-156.0,0.00030775,30]
[423242125,1779977437000,-542.0,0.00030776,30]
[423242126,1779977437000,-153.0,0.00030776,30]
[423242128,1779977437000,-5000.0,0.00030952,2]
[423242129,1779977437000,-501.0,0.00031052,8]
[423242133,1779977437000,-709.95396894,0.00031332,7]
[423242121,1779977437000,-539.0,0.00030775,30]
[423242130,1779977437000,-160.0,0.000312,7]
[423242153,1779977437000,-194.0,0.00031794,30]
[423242132,1779977437000,-200.23690586,0.0003133,7]
[423242142,1779977437000,-333.0,0.00031502,30]
[423242138,1779977437000,-220.18490623,0.00031363,2]
[423242137,1779977437000,-193.82885593,0.00031363,2]
[423242152,1779977437000,-153.0,0.00031776,30]
[423242135,1779977437000,-237.94492018,0.00031363,7]
[423242134,1779977437000,-214.08580537,0.00031363,7]
[423242136,1779977437000,-263.3578514,0.00031363,2]
[423242139,1779977437000,-235.67598792,0.00031363,7]
[423242140,1779977437000,-677.12483988,0.00031363,2]
[423242173,1779977438000,-684.35808036,0.0002755,30]
[423242171,1779977438000,-824.65977464,0.00025178,2]
[423242172,1779977438000,-1777.36820686,0.00025178,2]
[423242219,1779977440000,-713.45,0.00028033,30]
[423242225,1779977440000,-690.58,0.00028194,7]
[423242218,1779977440000,-168.3,0.00028014,7]
[423242217,1779977440000,-168.3,0.00027898,2]
[423242226,1779977440000,-713.45,0.00028355,2]
[423242223,1779977440000,-713.45,0.00028194,7]
[423242235,1779977440000,-713.45,0.00028838,2]
[423242228,1779977440000,-690.58,0.00028355,2]
[423242224,1779977440000,-352.95,0.00028194,7]
[423242227,1779977440000,-352.95,0.00028355,2]
[423242234,1779977440000,-352.95,0.00028677,7]
[423242216,1779977440000,-690.58,0.00027872,2]
[423242229,1779977440000,-23035.21,0.00028481,2]
[423242220,1779977440000,-352.95,0.00028033,30]
[423242207,1779977440000,-168.3,0.0002755,2]
[423242214,1779977440000,-713.45,0.00027872,2]
[423242222,1779977440000,-168.3,0.0002813,30]
[423242211,1779977440000,-352.95,0.00027711,7]
[423242213,1779977440000,-168.3,0.00027782,30]
[423242212,1779977440000,-690.58,0.00027711,7]
[423242221,1779977440000,-690.58,0.00028033,30]
[423242210,1779977440000,-713.45,0.00027711,7]
[423242208,1779977440000,-2602.0279815,0.00027622,2]
[423242209,1779977440000,-168.3,0.00027666,7]
[423242204,1779977440000,-352.95,0.0002755,30]
[423242205,1779977440000,-28.98638143,0.0002755,30]
[423242203,1779977440000,-29.09191964,0.0002755,30]
[423242206,1779977440000,-661.59361857,0.0002755,30]
[423242202,1779977440000,-151.47,0.00024658,2]
[423242215,1779977440000,-352.95,0.00027872,2]
[423242233,1779977440000,-713.45,0.00028677,7]
[423242237,1779977440000,-713.48,0.00029,30]
[423242232,1779977440000,-690.58,0.00028516,30]
[423242231,1779977440000,-352.95,0.00028516,30]
[423242269,1779977440000,-928.0,0.00033056,2]
[423242277,1779977440000,-306.0,0.000332,16]
[423242275,1779977440000,-3892.78,0.00033058,2]
[423242273,1779977440000,-932.0,0.00033058,2]
[423242267,1779977440000,-1356.0,0.00033056,2]
[423242265,1779977440000,-1041.66666667,0.00033,2]
[423242261,1779977440000,-428.21960381,0.00033,120]
[423242259,1779977440000,-174.84515845,0.00033,120]
[423242256,1779977440000,-209.46933668,0.00033,120]
[423242262,1779977440000,-160.0,0.00033,15]
[423242254,1779977440000,-165.54796298,0.00033,120]
[423242253,1779977440000,-170.59116884,0.00033,120]
[423242252,1779977440000,-172.39,0.00032877,2]
[423242250,1779977440000,-194.0,0.00032794,30]
[423242271,1779977440000,-525.0,0.00033058,2]
[423242249,1779977440000,-160.0,0.00032776,30]
[423242251,1779977440000,-501.0,0.00032842,10]
[423242230,1779977440000,-713.45,0.00028516,30]
[423242247,1779977440000,-688.0,0.00032775,30]
[423242238,1779977440000,-672.27149013,0.0003221,5]
[423242243,1779977440000,-500.0,0.00032456,2]
[423242240,1779977440000,-501.0,0.00032245,9]
[423242236,1779977440000,-352.95,0.00028838,2]
[423242241,1779977440000,-3737.46,0.0003243,32]
[423242245,1779977440000,-539.0,0.00032775,30]
[423242246,1779977440000,-209.0,0.00032775,30]
[423242244,1779977440000,-160.0,0.00032775,30]
[423242242,1779977440000,-242.763,0.0003243,32]
[423242239,1779977440000,-1223.24539854,0.00032211,2]
[423242248,1779977440000,-542.0,0.00032776,30]
[423242321,1779977441000,-150.0,0.00034893,2]
[423242318,1779977441000,-194.0,0.00034794,30]
[423242317,1779977441000,-542.0,0.00034776,30]
[423242323,1779977441000,-165.54796298,0.00035,120]
[423242322,1779977441000,-170.59116884,0.00035,120]
[423242324,1779977441000,-209.46933668,0.00035,120]
[423242319,1779977441000,-1500.0,0.00034795,2]
[423242316,1779977441000,-688.0,0.00034775,30]
[423242320,1779977441000,-1223.24539854,0.00034806,2]
[423242326,1779977441000,-400.0,0.00035,2]
[423242332,1779977441000,-150.0,0.00035342,7]
[423242328,1779977441000,-2000.0,0.000351,7]
[423242333,1779977441000,-1022.0,0.00035342,2]
[423242330,1779977441000,-501.0,0.0003523,12]
[423242329,1779977441000,-150.0,0.00035124,2]
[423242331,1779977441000,-4162.72,0.00035332,10]
[423242336,1779977441000,-1022.0,0.00035342,2]
[423242334,1779977441000,-1022.0,0.00035342,2]
[423242337,1779977441000,-1022.0,0.00035342,2]
[423242315,1779977441000,-209.0,0.00034775,30]
[423242327,1779977441000,-200.0,0.00035,7]
[423242314,1779977441000,-539.0,0.00034775,30]
[423242306,1779977441000,-209.46933668,0.000339,120]
[423242311,1779977441000,-771.5,0.00034182,7]
[423242287,1779977441000,-150.0,0.00033732,7]
[423242283,1779977441000,-501.0,0.00033439,10]
[423242289,1779977441000,-150.0,0.00033732,7]
[423242281,1779977441000,-1500.0,0.000334,7]
[423242279,1779977441000,-160.0,0.000332,16]
[423242285,1779977441000,-150.0,0.00033451,2]
[423242291,1779977441000,-150.0,0.00033732,7]
[423242335,1779977441000,-1022.0,0.00035342,2]
[423242304,1779977441000,-170.59116884,0.000339,120]
[423242305,1779977441000,-165.54796298,0.000339,120]
[423242293,1779977441000,-150.0,0.00033732,7]
[423242309,1779977441000,-501.0,0.00034036,11]
[423242300,1779977441000,-688.0,0.00033775,30]
[423242296,1779977441000,-539.0,0.00033775,30]
[423242307,1779977441000,-428.21960381,0.000339,120]
[423242308,1779977441000,-160.0,0.00034,20]
[423242298,1779977441000,-209.0,0.00033775,30]
[423242310,1779977441000,-152.0,0.00034137,3]
[423242303,1779977441000,-194.0,0.00033794,30]
[423242302,1779977441000,-542.0,0.00033776,30]
[423242312,1779977441000,-271.2,0.000342,21]
[423242313,1779977441000,-501.0,0.00034633,12]
[423242338,1779977441000,-1022.0,0.00035342,2]
[423242325,1779977441000,-428.21960381,0.00035,120]
[423242342,1779977441000,-1022.0,0.00035342,2]
[423242364,1779977441000,-150.0,0.00035342,2]
[423242363,1779977441000,-150.0,0.00035342,2]
[423242366,1779977441000,-188.0,0.00035342,2]
[423242367,1779977441000,-150.0,0.00035342,2]
[423242368,1779977441000,-150.0,0.00035342,2]
[423242369,1779977441000,-150.0,0.00035342,2]
[423242370,1779977441000,-150.0,0.00035342,2]
[423242379,1779977441000,-500.0,0.00035342,2]
[423242372,1779977441000,-200.0,0.00035342,2]
[423242381,1779977441000,-150.0,0.00035342,2]
[423242380,1779977441000,-635.78109964,0.00035342,2]
[423242373,1779977441000,-500.0,0.00035342,2]
[423242382,1779977441000,-473.8,0.00035549,10]
[423242375,1779977441000,-500.0,0.00035342,2]
[423242374,1779977441000,-500.0,0.00035342,2]
[423242377,1779977441000,-500.0,0.00035342,2]
[423242376,1779977441000,-500.0,0.00035342,2]
[423242378,1779977441000,-500.0,0.00035342,2]
[423242385,1779977441000,-346.44831078,0.00035609,2]
[423242384,1779977441000,-470.00493837,0.00035609,2]
[423242340,1779977441000,-1022.0,0.00035342,2]
[423242365,1779977441000,-150.0,0.00035342,2]
[423242371,1779977441000,-196.37538809,0.00035342,2]
[423242383,1779977441000,-400.0,0.000356,15]
[423242362,1779977441000,-207.06787103,0.00035342,2]
[423242339,1779977441000,-1022.0,0.00035342,2]
[423242361,1779977441000,-210.92564094,0.00035342,2]
[423242341,1779977441000,-1022.0,0.00035342,2]
[423242343,1779977441000,-1022.0,0.00035342,2]
[423242344,1779977441000,-1022.0,0.00035342,2]
[423242345,1779977441000,-1022.0,0.00035342,2]
[423242346,1779977441000,-1022.0,0.00035342,2]
[423242351,1779977441000,-1022.0,0.00035342,2]
[423242347,1779977441000,-1022.0,0.00035342,2]
[423242349,1779977441000,-1022.0,0.00035342,2]
[423242350,1779977441000,-1022.0,0.00035342,2]
[423242386,1779977441000,-1800.20391073,0.00035609,2]
[423242348,1779977441000,-1022.0,0.00035342,2]
[423242353,1779977441000,-1022.0,0.00035342,2]
[423242354,1779977441000,-1022.0,0.00035342,2]
[423242355,1779977441000,-1022.0,0.00035342,2]
[423242352,1779977441000,-1022.0,0.00035342,2]
[423242357,1779977441000,-150.0,0.00035342,14]
[423242358,1779977441000,-150.0,0.00035342,2]
[423242356,1779977441000,-1034.10320481,0.00035342,2]
[423242360,1779977441000,-150.0,0.00035342,2]
[423242359,1779977441000,-150.0,0.00035342,2]
[423242415,1779977442000,-2881.24340863,0.00036346,2]
[423242425,1779977442000,-150.0,0.0003688,2]
[423242423,1779977442000,-167.6375,0.00036733,2]
[423242420,1779977442000,-3100.0,0.000367,13]
[423242422,1779977442000,-604.8395,0.00036733,2]
[423242416,1779977442000,-35235.0,0.000364,30]
[423242417,1779977442000,-501.0,0.00036424,13]
[423242419,1779977442000,-500.0,0.00036678,60]
[423242426,1779977442000,-6200.0,0.000369,13]
[423242418,1779977442000,-1500.0,0.000366,13]
[423242421,1779977442000,-150.0,0.00036712,7]
[423242430,1779977442000,-300.0,0.00036999,60]
[423242431,1779977442000,-3345.472959,0.00036999,60]
[423242433,1779977442000,-322.6107,0.00036999,60]
[423242435,1779977442000,-3597.61791044,0.00036999,60]
[423242434,1779977442000,-3469.25545848,0.00036999,60]
[423242428,1779977442000,-3111.0,0.00036999,60]
[423242439,1779977442000,-1030.0,0.00036999,30]
[423242429,1779977442000,-3226.107,0.00036999,60]
[423242432,1779977442000,-311.1,0.00036999,60]
[423242438,1779977442000,-1500.0,0.00036999,30]
[423242446,1779977442000,-1107.63007,0.00036999,30]
[423242440,1779977442000,-3016.77794271,0.00036999,60]
[423242436,1779977442000,-450.8500647,0.00036999,60]
[423242427,1779977442000,-3000.0,0.00036999,60]
[423242443,1779977442000,-1068.11,0.00036999,30]
[423242391,1779977442000,-172.39,0.00035616,2]
[423242413,1779977442000,-932.0,0.00036058,2]
[423242437,1779977442000,-3730.72977313,0.00036999,60]
[423242387,1779977442000,-702.31140773,0.00035609,2]
[423242388,1779977442000,-1800.20391073,0.00035609,2]
[423242389,1779977442000,-638.8715178,0.00035611,120]
[423242390,1779977442000,-243.33833534,0.00035616,7]
[423242392,1779977442000,-151.55341745,0.0003564,2]
[423242393,1779977442000,-539.0,0.00035775,30]
[423242401,1779977442000,-500.0,0.00035856,60]
[423242395,1779977442000,-688.0,0.00035775,30]
[423242396,1779977442000,-542.0,0.00035776,30]
[423242397,1779977442000,-194.0,0.00035794,30]
[423242394,1779977442000,-209.0,0.00035775,30]
[423242414,1779977442000,-771.5,0.00036153,30]
[423242399,1779977442000,-604.8395,0.00035837,2]
[423242398,1779977442000,-501.0,0.00035827,13]
[423242404,1779977442000,-500.0,0.0003596,120]
[423242400,1779977442000,-167.6375,0.00035837,2]
[423242403,1779977442000,-492.15,0.00035939,30]
[423242405,1779977442000,-160.0,0.00036,30]
[423242412,1779977442000,-525.0,0.00036058,2]
[423242410,1779977442000,-1356.0,0.00036056,2]
[423242407,1779977442000,-160.0,0.00036,30]
[423242406,1779977442000,-209.46933668,0.00036,120]
[423242409,1779977442000,-162.25,0.00036,2]
[423242408,1779977442000,-428.21960381,0.00036,120]
[423242411,1779977442000,-928.0,0.00036056,2]
[423242402,1779977442000,-500.0,0.00035856,60]
[423242447,1779977442000,-172.05904,0.00036999,60]
[423242424,1779977442000,-4600.0,0.000368,13]
[423242444,1779977442000,-165.92,0.00036999,60]
[423242483,1779977442000,-2000.0,0.000371,86]
[423242485,1779977442000,-2000.0,0.000371,86]
[423242479,1779977442000,-30636.0,0.00037,30]
[423242477,1779977442000,-306.0,0.00037,35]
[423242482,1779977442000,-2000.0,0.000371,7]
[423242480,1779977442000,-10293.1551,0.00037004,2]
[423242486,1779977442000,-2000.0,0.000371,86]
[423242478,1779977442000,-160.0,0.00037,35]
[423242487,1779977442000,-200.0,0.00037169,10]
[423242481,1779977442000,-501.0,0.00037021,14]
[423242489,1779977442000,-250.0,0.00037313,30]
[423242498,1779977442000,-1000.0,0.0003747,2]
[423242488,1779977442000,-7800.0,0.000373,13]
[423242499,1779977442000,-1000.0,0.0003747,2]
[423242497,1779977442000,-1000.0,0.0003747,2]
[423242490,1779977442000,-157.36354016,0.00037399,2]
[423242491,1779977442000,-600.0,0.000374,30]
[423242492,1779977442000,-1500.0,0.000374,13]
[423242496,1779977442000,-1000.0,0.0003747,2]
[423242494,1779977442000,-500.0,0.00037422,2]
[423242493,1779977442000,-1223.24539854,0.000374,2]
[423242495,1779977442000,-89338.3952101,0.00037423,2]
[423242500,1779977442000,-1000.0,0.0003747,2]
[423242502,1779977442000,-1040.24438291,0.0003747,2]
[423242501,1779977442000,-1000.0,0.0003747,2]
[423242484,1779977442000,-2000.0,0.000371,86]
[423242474,1779977442000,-1651.81367706,0.00036999,30]
[423242441,1779977442000,-160.0,0.00036999,60]
[423242469,1779977442000,-2080.17592889,0.00036999,30]
[423242475,1779977442000,-2319.72410669,0.00036999,30]
[423242445,1779977442000,-1613.0535,0.00036999,30]
[423242442,1779977442000,-1555.5,0.00036999,30]
[423242448,1779977442000,-1148.61238259,0.00036999,30]
[423242453,1779977442000,-1734.62772924,0.00036999,30]
[423242450,1779977442000,-1672.7364795,0.00036999,30]
[423242452,1779977442000,-185.02695778,0.00036999,60]
[423242454,1779977442000,-1235.18214925,0.00036999,30]
[423242456,1779977442000,-1798.80895522,0.00036999,30]
[423242449,1779977442000,-178.42522448,0.00036999,60]
[423242455,1779977442000,-191.87295522,0.00036999,60]
[423242458,1779977442000,-198.97225456,0.00036999,60]
[423242457,1779977442000,-1280.88388877,0.00036999,30]
[423242451,1779977442000,-1191.11104074,0.00036999,30]
[423242461,1779977442000,-206.33422798,0.00036999,60]
[423242459,1779977442000,-1328.27659266,0.00036999,30]
[423242465,1779977442000,-213.96859445,0.00036999,60]
[423242466,1779977442000,-1428.38747117,0.00036999,30]
[423242468,1779977442000,-1481.2378076,0.00036999,30]
[423242464,1779977442000,-1934.38338736,0.00036999,30]
[423242467,1779977442000,-2005.9555727,0.00036999,30]
[423242470,1779977442000,-1536.04360648,0.00036999,30]
[423242463,1779977442000,-1377.42282658,0.00036999,30]
[423242460,1779977442000,-1865.36488656,0.00036999,30]